[Event "*** SCC Grand Prix: Titled Tuesday Blitz"]
[Site "Chess.com"]
[Date "2020.08.11"]
[Round "1"]
[White "Zkid"]
[Black "NoboaKevin1999"]
[Result "1-0"]
[WhiteElo "2857"]
[BlackElo "2416"]
[TimeControl "180+1"]
[EndTime "10:06:42 PDT"]
[Termination "Zkid won by resignation"]

1. e4 {[%clk 0:03:00.9]} 1... e6 {[%clk 0:02:59.9]} 2. d4 {[%clk 0:03:00.7]}
2... d5 {[%clk 0:03:00.3]} 3. Nc3 {[%clk 0:03:01.3]} 3... Nf6 {[%clk 0:02:59.8]}
4. e5 {[%clk 0:03:01.4]} 4... Nfd7 {[%clk 0:02:59.4]} 5. f4 {[%clk 0:03:02.1]}
5... c5 {[%clk 0:02:59.8]} 6. Nf3 {[%clk 0:03:02.5]} 6... Be7 {[%clk 0:03:00.2]}
7. Be3 {[%clk 0:03:01.8]} 7... O-O {[%clk 0:02:59.3]} 8. a3 {[%clk 0:02:59.9]}
8... b6 {[%clk 0:02:58.8]} 9. Bd3 {[%clk 0:02:54]} 9... f6 {[%clk 0:02:57.4]}
10. exf6 {[%clk 0:02:51]} 10... Nxf6 {[%clk 0:02:56.6]} 11. O-O {[%clk 0:02:49]}
11... Nc6 {[%clk 0:02:54.2]} 12. Bb5 {[%clk 0:02:30.6]} 12... Nxd4 {[%clk
0:02:52.2]} 13. Nxd4 {[%clk 0:02:30.2]} 13... cxd4 {[%clk 0:02:52.4]} 14. Bxd4
{[%clk 0:02:31.1]} 14... Bd7 {[%clk 0:02:49.8]} 15. Bd3 {[%clk 0:02:28.8]} 15...
Bc5 {[%clk 0:02:33.5]} 16. Ne2 {[%clk 0:02:26.5]} 16... Qc7 {[%clk 0:02:32.8]}
17. Kh1 {[%clk 0:02:19.3]} 17... Rae8 {[%clk 0:02:30.5]} 18. Be5 {[%clk
0:02:17.1]} 18... Bd6 {[%clk 0:02:27]} 19. Bxd6 {[%clk 0:02:10.2]} 19... Qxd6
{[%clk 0:02:27.9]} 20. Ng3 {[%clk 0:02:06.4]} 20... e5 {[%clk 0:02:22.2]} 21.
fxe5 {[%clk 0:02:05.7]} 21... Rxe5 {[%clk 0:02:21.3]} 22. Qd2 {[%clk 0:02:01.5]}
22... Rfe8 {[%clk 0:02:05.9]} 23. Rae1 {[%clk 0:01:51.4]} 23... Ng4 {[%clk
0:01:11.7]} 24. Rxe5 {[%clk 0:01:42.7]} 24... Qxe5 {[%clk 0:01:09.7]} 25. c3
{[%clk 0:01:35.9]} 25... h6 {[%clk 0:01:05.3]} 26. Kg1 {[%clk 0:01:27.9]} 26...
d4 {[%clk 0:00:55.1]} 27. Bc4+ {[%clk 0:01:22.9]} 27... Be6 {[%clk 0:00:51.7]}
28. Re1 {[%clk 0:01:17.5]} 28... Qf6 {[%clk 0:00:47.4]} 29. Rxe6 {[%clk
0:01:08.5]} 29... Rxe6 {[%clk 0:00:39.4]} 30. Nh5 {[%clk 0:01:03.4]} 30... Qe5
{[%clk 0:00:26.7]} 31. Nf4 {[%clk 0:00:59.9]} 31... dxc3 {[%clk 0:00:18.5]} 32.
Bxe6+ {[%clk 0:00:57.2]} 32... Qxe6 {[%clk 0:00:17.4]} 33. Qd8+ {[%clk
0:00:56.5]} 33... Kh7 {[%clk 0:00:15.8]} 34. Nxe6 {[%clk 0:00:55.7]} 34... cxb2
{[%clk 0:00:15.3]} 35. Qd3+ {[%clk 0:00:53.9]} 35... Kg8 {[%clk 0:00:15]} 36.
Qc2 {[%clk 0:00:52.2]} 36... Kf7 {[%clk 0:00:12.6]} 37. Nf4 {[%clk 0:00:51.6]}
37... Ne3 {[%clk 0:00:11.4]} 38. Qxb2 {[%clk 0:00:50.5]} 1-0

[Event "*** SCC Grand Prix: Titled Tuesday Blitz"]
[Site "Chess.com"]
[Date "2020.08.11"]
[Round "1"]
[White "GadimbayliA"]
[Black "ChessBitl"]
[Result "1-0"]
[WhiteElo "2852"]
[BlackElo "2413"]
[TimeControl "180+1"]
[EndTime "10:06:43 PDT"]
[Termination "GadimbayliA won by resignation"]

1. e4 {[%clk 0:02:57.8]} 1... c5 {[%clk 0:02:45.2]} 2. f4 {[%clk 0:02:57.6]}
2... Nc6 {[%clk 0:02:46.1]} 3. Nf3 {[%clk 0:02:56.2]} 3... g6 {[%clk 0:02:43.3]}
4. c3 {[%clk 0:02:51.1]} 4... d5 {[%clk 0:02:38.9]} 5. e5 {[%clk 0:02:51.5]}
5... Bg4 {[%clk 0:02:34.9]} 6. h3 {[%clk 0:02:51.8]} 6... Bxf3 {[%clk 0:02:30]}
7. Qxf3 {[%clk 0:02:52.7]} 7... e6 {[%clk 0:02:30.5]} 8. Bb5 {[%clk 0:02:52.1]}
8... Ne7 {[%clk 0:02:22.6]} 9. O-O {[%clk 0:02:50.8]} 9... Qb6 {[%clk
0:02:14.2]} 10. Ba4 {[%clk 0:02:48.9]} 10... h5 {[%clk 0:02:06.8]} 11. d3 {[%clk
0:02:41]} 11... Nf5 {[%clk 0:02:03.2]} 12. g4 {[%clk 0:02:31.9]} 12... hxg4
{[%clk 0:01:58.3]} 13. hxg4 {[%clk 0:02:32.8]} 13... Nh4 {[%clk 0:01:58.6]} 14.
Qe2 {[%clk 0:02:33.3]} 14... Be7 {[%clk 0:01:49.8]} 15. Be3 {[%clk 0:02:27.9]}
15... d4 {[%clk 0:01:35.6]} 16. cxd4 {[%clk 0:02:24.7]} 16... cxd4 {[%clk
0:01:27.9]} 17. Bf2 {[%clk 0:02:23.3]} 17... g5 {[%clk 0:01:26.7]} 18. Nd2
{[%clk 0:02:13.1]} 18... gxf4 {[%clk 0:01:22.3]} 19. Rac1 {[%clk 0:02:13.4]}
19... Qa6 {[%clk 0:01:14.8]} 20. Bxc6+ {[%clk 0:02:08.6]} 20... bxc6 {[%clk
0:01:15.7]} 21. Qe4 {[%clk 0:02:01.4]} 21... Rc8 {[%clk 0:01:11.5]} 22. Nc4
{[%clk 0:01:50.5]} 22... Ng6 {[%clk 0:01:08]} 23. Bxd4 {[%clk 0:01:47.9]} 23...
c5 {[%clk 0:01:03.7]} 24. Bc3 {[%clk 0:01:43.9]} 24... Kf8 {[%clk 0:00:59.8]}
25. Bd2 {[%clk 0:01:36.2]} 25... Rh4 {[%clk 0:00:56.6]} 26. Qf3 {[%clk
0:01:29.2]} 26... Bg5 {[%clk 0:00:50.1]} 27. Be1 {[%clk 0:01:17]} 27... Rh6
{[%clk 0:00:44.4]} 28. Rc2 {[%clk 0:01:13.4]} 28... Qa4 {[%clk 0:00:44]} 29. b3
{[%clk 0:01:11.7]} 29... Qd7 {[%clk 0:00:40.1]} 30. Bc3 {[%clk 0:01:08.2]} 30...
Be7 {[%clk 0:00:36]} 31. Rh2 {[%clk 0:01:01.7]} 31... Rxh2 {[%clk 0:00:34.5]}
32. Kxh2 {[%clk 0:01:02.6]} 32... Kg7 {[%clk 0:00:29.7]} 33. Kg1 {[%clk
0:01:01]} 33... Rd8 {[%clk 0:00:23.9]} 34. Rd1 {[%clk 0:00:58.1]} 34... Rh8
{[%clk 0:00:24.3]} 35. Nd2 {[%clk 0:00:55.2]} 35... c4 {[%clk 0:00:20.1]} 36.
Nxc4 {[%clk 0:00:50.7]} 36... a5 {[%clk 0:00:20]} 37. d4 {[%clk 0:00:48.8]}
37... a4 {[%clk 0:00:14.8]} 38. d5 {[%clk 0:00:49.1]} 38... Qxd5 {[%clk
0:00:12.4]} 39. Rxd5 {[%clk 0:00:48.5]} 1-0

[Event "*** SCC Grand Prix: Titled Tuesday Blitz"]
[Site "Chess.com"]
[Date "2020.08.11"]
[Round "1"]
[White "Diego_FloresQ"]
[Black "Iris77"]
[Result "0-1"]
[WhiteElo "2470"]
[BlackElo "2053"]
[TimeControl "180+1"]
[EndTime "10:06:45 PDT"]
[Termination "Iris77 won on time"]

1. e4 {[%clk 0:01:29.7]} 1... e6 {[%clk 0:03:00.9]} 2. d4 {[%clk 0:01:28.8]}
2... d5 {[%clk 0:03:00.7]} 3. Nc3 {[%clk 0:01:29.3]} 3... Nf6 {[%clk 0:02:59.8]}
4. Bg5 {[%clk 0:01:26.2]} 4... Bb4 {[%clk 0:02:57.1]} 5. e5 {[%clk 0:01:25.9]}
5... h6 {[%clk 0:02:55.6]} 6. Bd2 {[%clk 0:01:26.4]} 6... Bxc3 {[%clk
0:02:53.8]} 7. bxc3 {[%clk 0:01:27.3]} 7... Ne4 {[%clk 0:02:52.2]} 8. Qg4 {[%clk
0:01:27.8]} 8... Kf8 {[%clk 0:02:48.9]} 9. Bd3 {[%clk 0:01:27.1]} 9... Nxd2
{[%clk 0:02:41.6]} 10. Kxd2 {[%clk 0:01:28]} 10... c5 {[%clk 0:02:39.1]} 11. h4
{[%clk 0:01:26.5]} 11... Nc6 {[%clk 0:02:35.4]} 12. Qf4 {[%clk 0:01:17.6]} 12...
c4 {[%clk 0:02:28.6]} 13. Bg6 {[%clk 0:01:13.7]} 13... Qe7 {[%clk 0:02:24.9]}
14. a3 {[%clk 0:01:06.4]} 14... Bd7 {[%clk 0:02:15.3]} 15. Bh5 {[%clk
0:00:49.1]} 15... b5 {[%clk 0:02:05.2]} 16. Ne2 {[%clk 0:00:47.7]} 16... a5
{[%clk 0:01:59.5]} 17. g4 {[%clk 0:00:48.1]} 17... Kg8 {[%clk 0:01:52.3]} 18. g5
{[%clk 0:00:47.8]} 18... Rf8 {[%clk 0:01:46.6]} 19. Rag1 {[%clk 0:00:34.5]}
19... g6 {[%clk 0:01:22.6]} 20. gxh6 {[%clk 0:00:31.4]} 20... Kh7 {[%clk
0:01:19.9]} 21. Bf3 {[%clk 0:00:30.2]} 21... Qxa3 {[%clk 0:01:14.7]} 22. h5
{[%clk 0:00:28.9]} 22... Rhg8 {[%clk 0:01:10.5]} 23. Rg2 {[%clk 0:00:10.1]}
23... b4 {[%clk 0:00:55.1]} 24. Rhg1 {[%clk 0:00:09]} 24... Be8 {[%clk
0:00:26.2]} 0-1

[Event "*** SCC Grand Prix: Titled Tuesday Blitz"]
[Site "Chess.com"]
[Date "2020.08.11"]
[Round "1"]
[White "Izoria123"]
[Black "amatatanav"]
[Result "0-1"]
[WhiteElo "2864"]
[BlackElo "2439"]
[TimeControl "180+1"]
[EndTime "10:06:47 PDT"]
[Termination "amatatanav won by resignation"]

1. Nf3 {[%clk 0:03:00.9]} 1... Nf6 {[%clk 0:02:58.5]} 2. c4 {[%clk 0:03:00.2]}
2... e6 {[%clk 0:02:56.6]} 3. g3 {[%clk 0:02:58.5]} 3... d5 {[%clk 0:02:56.8]}
4. Bg2 {[%clk 0:02:58.3]} 4... Be7 {[%clk 0:02:57.2]} 5. d4 {[%clk 0:02:57.9]}
5... O-O {[%clk 0:02:56.8]} 6. Qc2 {[%clk 0:02:57.8]} 6... Nbd7 {[%clk
0:02:36.7]} 7. O-O {[%clk 0:02:56.6]} 7... c6 {[%clk 0:02:35.9]} 8. Nbd2 {[%clk
0:02:55.9]} 8... b6 {[%clk 0:02:35.4]} 9. e4 {[%clk 0:02:56.2]} 9... Bb7 {[%clk
0:02:24]} 10. e5 {[%clk 0:02:55.4]} 10... Ne8 {[%clk 0:02:24]} 11. cxd5 {[%clk
0:02:55.9]} 11... cxd5 {[%clk 0:02:23.1]} 12. Re1 {[%clk 0:02:56.3]} 12... Qc7
{[%clk 0:02:21.1]} 13. Qa4 {[%clk 0:02:38.2]} 13... Qc6 {[%clk 0:02:12.8]} 14.
Qb3 {[%clk 0:02:34.7]} 14... Rc8 {[%clk 0:02:00.2]} 15. Bf1 {[%clk 0:02:32.9]}
15... Nc7 {[%clk 0:01:26.5]} 16. Bd3 {[%clk 0:02:31.8]} 16... Ba6 {[%clk
0:01:19.6]} 17. Bb1 {[%clk 0:02:27.8]} 17... b5 {[%clk 0:00:36.1]} 18. Qd3
{[%clk 0:02:23.8]} 18... g6 {[%clk 0:00:35.8]} 19. Qe3 {[%clk 0:02:17.3]} 19...
b4 {[%clk 0:00:29.7]} 20. Nb3 {[%clk 0:02:08.6]} 20... Rfe8 {[%clk 0:00:10.3]}
21. Qh6 {[%clk 0:02:04.9]} 21... Nf8 {[%clk 0:00:09.5]} 22. Qh4 {[%clk
0:02:05.5]} 22... Bxh4 {[%clk 0:00:08.8]} 23. Nxh4 {[%clk 0:02:04.5]} 23... Bc4
{[%clk 0:00:06.9]} 24. Nd2 {[%clk 0:02:01.8]} 24... a5 {[%clk 0:00:06.9]} 25.
Ndf3 {[%clk 0:01:59.1]} 25... Ba6 {[%clk 0:00:07]} 26. Be3 {[%clk 0:01:53.8]}
26... Nb5 {[%clk 0:00:06.9]} 27. h3 {[%clk 0:01:51.7]} 27... a4 {[%clk
0:00:07.2]} 28. Nh2 {[%clk 0:01:51.8]} 28... a3 {[%clk 0:00:07.6]} 29. bxa3
{[%clk 0:01:52]} 29... bxa3 {[%clk 0:00:08.3]} 30. Ng4 {[%clk 0:01:51.8]} 30...
Qc3 {[%clk 0:00:08.3]} 31. Bd3 {[%clk 0:01:48.5]} 31... Nd7 {[%clk 0:00:07.4]}
32. Bf1 {[%clk 0:01:44.9]} 32... Qa5 {[%clk 0:00:06]} 33. Nf3 {[%clk 0:01:42]}
33... Nc3 {[%clk 0:00:06.2]} 34. Bd2 {[%clk 0:01:32.8]} 34... Bxf1 {[%clk
0:00:05.7]} 35. Kxf1 {[%clk 0:01:33.7]} 35... Qa6+ {[%clk 0:00:06]} 36. Kg2
{[%clk 0:01:34.3]} 36... Ne4 {[%clk 0:00:06]} 37. Be3 {[%clk 0:01:34.5]} 37...
Rc2 {[%clk 0:00:05.7]} 38. Rac1 {[%clk 0:01:33.2]} 38... Rxc1 {[%clk 0:00:05.2]}
39. Rxc1 {[%clk 0:01:33.2]} 39... Rc8 {[%clk 0:00:06.1]} 40. Rb1 {[%clk
0:01:32.8]} 40... h5 {[%clk 0:00:05.8]} 41. Nh6+ {[%clk 0:01:28.1]} 41... Kg7
{[%clk 0:00:05.8]} 42. g4 {[%clk 0:01:29]} 42... Qd3 {[%clk 0:00:04.8]} 43. Rb7
{[%clk 0:01:27.6]} 43... Rc2 {[%clk 0:00:04.4]} 44. Rxd7 {[%clk 0:01:00.9]}
44... Qxe3 {[%clk 0:00:04.5]} 45. Rxf7+ {[%clk 0:00:59.9]} 45... Kxh6 {[%clk
0:00:04.8]} 0-1

[Event "*** SCC Grand Prix: Titled Tuesday Blitz"]
[Site "Chess.com"]
[Date "2020.08.11"]
[Round "1"]
[White "XDPS"]
[Black "AGW2016"]
[Result "1-0"]
[WhiteElo "2652"]
[BlackElo "2308"]
[TimeControl "180+1"]
[EndTime "10:06:47 PDT"]
[Termination "XDPS won by checkmate"]

1. d4 {[%clk 0:02:56.1]} 1... Nf6 {[%clk 0:02:56.9]} 2. Nf3 {[%clk 0:02:56.1]}
2... g6 {[%clk 0:02:55.6]} 3. Nbd2 {[%clk 0:02:55.8]} 3... d5 {[%clk 0:02:54.3]}
4. e3 {[%clk 0:02:55.7]} 4... Bg7 {[%clk 0:02:53.8]} 5. b4 {[%clk 0:02:56.2]}
5... O-O {[%clk 0:02:49.4]} 6. c4 {[%clk 0:02:55.6]} 6... c6 {[%clk 0:02:44.9]}
7. Bb2 {[%clk 0:02:54.6]} 7... Bf5 {[%clk 0:02:41]} 8. Be2 {[%clk 0:02:54]} 8...
Ne4 {[%clk 0:02:31.8]} 9. O-O {[%clk 0:02:52.8]} 9... Nd7 {[%clk 0:02:28.1]} 10.
a4 {[%clk 0:02:46.7]} 10... Ndf6 {[%clk 0:02:24.2]} 11. Nb3 {[%clk 0:02:42.1]}
11... dxc4 {[%clk 0:02:20.3]} 12. Bxc4 {[%clk 0:02:41.6]} 12... Nd5 {[%clk
0:02:21]} 13. b5 {[%clk 0:02:37.8]} 13... Rc8 {[%clk 0:02:12]} 14. Rc1 {[%clk
0:02:25.6]} 14... c5 {[%clk 0:02:10.7]} 15. Ne5 {[%clk 0:02:13.7]} 15... Bxe5
{[%clk 0:01:57.5]} 16. dxe5 {[%clk 0:02:12]} 16... Nb6 {[%clk 0:01:57.9]} 17.
Qe2 {[%clk 0:01:54.1]} 17... Nxa4 {[%clk 0:01:41.1]} 18. Ba1 {[%clk 0:01:50.6]}
18... Nb6 {[%clk 0:01:36]} 19. f3 {[%clk 0:01:50.8]} 19... Ng5 {[%clk
0:01:35.9]} 20. Rfd1 {[%clk 0:01:45.1]} 20... Qc7 {[%clk 0:01:33.4]} 21. e4
{[%clk 0:01:43.7]} 21... Be6 {[%clk 0:01:33.1]} 22. Bd5 {[%clk 0:01:38]} 22...
c4 {[%clk 0:01:32.5]} 23. f4 {[%clk 0:01:34.1]} 23... Bxd5 {[%clk 0:01:17.1]}
24. exd5 {[%clk 0:01:34.2]} 24... Qd7 {[%clk 0:01:15]} 25. Nd4 {[%clk 0:01:08]}
25... Qxd5 {[%clk 0:01:06]} 26. fxg5 {[%clk 0:01:04.1]} 26... e6 {[%clk
0:01:04]} 27. Nf5 {[%clk 0:00:57.6]} 27... Qc5+ {[%clk 0:00:48.7]} 28. Bd4
{[%clk 0:00:57.2]} 28... Qb4 {[%clk 0:00:47.9]} 29. Nh6+ {[%clk 0:00:54.8]}
29... Kg7 {[%clk 0:00:47.9]} 30. Bxb6 {[%clk 0:00:35.3]} 30... axb6 {[%clk
0:00:46.5]} 31. Kh1 {[%clk 0:00:35.7]} 31... c3 {[%clk 0:00:40.8]} 32. Qf2
{[%clk 0:00:34.3]} 32... Qe7 {[%clk 0:00:39.8]} 33. Qf6+ {[%clk 0:00:28.4]}
33... Qxf6 {[%clk 0:00:39.9]} 34. exf6+ {[%clk 0:00:29.3]} 34... Kh8 {[%clk
0:00:39.4]} 35. Rd7 {[%clk 0:00:27.6]} 35... e5 {[%clk 0:00:33.3]} 36. Nxf7+
{[%clk 0:00:26.6]} 36... Kg8 {[%clk 0:00:24.4]} 37. Nxe5 {[%clk 0:00:25.1]}
37... Rfe8 {[%clk 0:00:23]} 38. Rg7+ {[%clk 0:00:23.5]} 38... Kf8 {[%clk
0:00:22.6]} 39. Nd7# {[%clk 0:00:23.4]} 1-0

[Event "*** SCC Grand Prix: Titled Tuesday Blitz"]
[Site "Chess.com"]
[Date "2020.08.11"]
[Round "1"]
[White "GAusal"]
[Black "aNaartjieZA"]
[Result "0-1"]
[WhiteElo "2129"]
[BlackElo "2508"]
[TimeControl "180+1"]
[EndTime "10:06:52 PDT"]
[Termination "aNaartjieZA won by resignation"]

1. d4 {[%clk 0:02:56.7]} 1... Nf6 {[%clk 0:02:58.8]} 2. Bf4 {[%clk 0:02:53.2]}
2... c5 {[%clk 0:02:58.7]} 3. e3 {[%clk 0:02:49.6]} 3... g6 {[%clk 0:02:58.5]}
4. c3 {[%clk 0:02:48.7]} 4... Bg7 {[%clk 0:02:58.6]} 5. Nf3 {[%clk 0:02:48.5]}
5... O-O {[%clk 0:02:58.8]} 6. Be2 {[%clk 0:02:47.9]} 6... b6 {[%clk 0:02:58.9]}
7. Nbd2 {[%clk 0:02:47.8]} 7... Bb7 {[%clk 0:02:59.5]} 8. O-O {[%clk 0:02:47.9]}
8... d6 {[%clk 0:03:00.1]} 9. Rc1 {[%clk 0:02:48]} 9... Nbd7 {[%clk 0:03:00.3]}
10. Re1 {[%clk 0:02:45.6]} 10... Rc8 {[%clk 0:03:00.2]} 11. dxc5 {[%clk
0:02:44.9]} 11... Nxc5 {[%clk 0:02:59.1]} 12. Bg3 {[%clk 0:02:45.8]} 12... e5
{[%clk 0:02:58.8]} 13. Nb3 {[%clk 0:02:44.3]} 13... Nce4 {[%clk 0:02:55.4]} 14.
Nfd2 {[%clk 0:02:34.9]} 14... Nxg3 {[%clk 0:02:54.6]} 15. hxg3 {[%clk
0:02:34.1]} 15... d5 {[%clk 0:02:54.5]} 16. Nf3 {[%clk 0:02:32.9]} 16... Ne4
{[%clk 0:02:50.1]} 17. Nbd2 {[%clk 0:02:30.6]} 17... Nd6 {[%clk 0:02:45.3]} 18.
Nb3 {[%clk 0:02:30.1]} 18... h6 {[%clk 0:02:38.2]} 19. Bf1 {[%clk 0:02:28.9]}
19... Qe7 {[%clk 0:02:37.1]} 20. Qd2 {[%clk 0:02:25.1]} 20... Rfd8 {[%clk
0:02:37.2]} 21. Rcd1 {[%clk 0:02:24]} 21... Nc4 {[%clk 0:02:37.1]} 22. Qc1
{[%clk 0:02:23.3]} 22... Nd6 {[%clk 0:02:33.4]} 23. Qb1 {[%clk 0:02:17.8]} 23...
f5 {[%clk 0:02:32.4]} 24. Nh4 {[%clk 0:02:16]} 24... Qf7 {[%clk 0:02:30.5]} 25.
Nf3 {[%clk 0:02:07.5]} 25... g5 {[%clk 0:02:30.1]} 26. Nfd2 {[%clk 0:01:59.7]}
26... Rf8 {[%clk 0:02:27.5]} 27. c4 {[%clk 0:01:55.6]} 27... dxc4 {[%clk
0:02:25.3]} 28. Nc1 {[%clk 0:01:45.9]} 28... Ne4 {[%clk 0:02:17.2]} 29. Nxe4
{[%clk 0:01:44.9]} 29... Bxe4 {[%clk 0:02:16.6]} 30. Qa1 {[%clk 0:01:42.6]}
30... Rfd8 {[%clk 0:02:14.5]} 31. f3 {[%clk 0:01:41.2]} 31... Bc2 {[%clk
0:02:13.4]} 32. Rxd8+ {[%clk 0:01:39.7]} 32... Rxd8 {[%clk 0:02:13.2]} 33. Ne2
{[%clk 0:01:37.9]} 33... e4 {[%clk 0:02:11.5]} 34. Qc1 {[%clk 0:01:34.1]} 34...
Bd3 {[%clk 0:02:10.5]} 35. Nc3 {[%clk 0:01:33.3]} 35... Qc7 {[%clk 0:02:05.4]}
36. fxe4 {[%clk 0:01:30.3]} 36... fxe4 {[%clk 0:02:04.1]} 37. Kh2 {[%clk
0:01:30.5]} 37... Be5 {[%clk 0:02:03.3]} 38. Ne2 {[%clk 0:01:26.3]} 38... Bxe2
{[%clk 0:02:01]} 39. Bxe2 {[%clk 0:01:26.2]} 39... Bxg3+ {[%clk 0:02:01]} 40.
Kh1 {[%clk 0:01:22.5]} 40... Bxe1 {[%clk 0:02:00.9]} 41. Qxe1 {[%clk 0:01:18.1]}
41... b5 {[%clk 0:02:01]} 42. Qc3 {[%clk 0:01:14.2]} 42... Qg7 {[%clk
0:01:57.3]} 43. Qa5 {[%clk 0:01:13.1]} 43... Rd5 {[%clk 0:01:49.4]} 44. Bxc4
{[%clk 0:01:06.5]} 44... bxc4 {[%clk 0:01:46.4]} 45. Qxd5+ {[%clk 0:01:05.9]}
45... Qf7 {[%clk 0:01:46.4]} 46. Qxe4 {[%clk 0:01:06]} 46... Kg7 {[%clk
0:01:38.4]} 47. Qd4+ {[%clk 0:01:04.7]} 47... Kg8 {[%clk 0:01:37.7]} 48. e4
{[%clk 0:01:00.4]} 48... Qe6 {[%clk 0:01:36.4]} 49. Kg1 {[%clk 0:00:56.9]} 49...
Kf7 {[%clk 0:01:35.6]} 50. Kf2 {[%clk 0:00:56.3]} 50... Kg6 {[%clk 0:01:35]} 51.
Ke3 {[%clk 0:00:52.5]} 51... h5 {[%clk 0:01:32.3]} 52. Kd2 {[%clk 0:00:45.3]}
52... h4 {[%clk 0:01:32.3]} 53. Kc3 {[%clk 0:00:42.6]} 53... g4 {[%clk
0:01:32.3]} 54. e5 {[%clk 0:00:36]} 54... h3 {[%clk 0:01:30.9]} 55. gxh3 {[%clk
0:00:31.6]} 55... gxh3 {[%clk 0:01:31]} 56. Qg1+ {[%clk 0:00:27.6]} 56... Kf5
{[%clk 0:01:28.2]} 57. Qh2 {[%clk 0:00:24.4]} 57... Qxe5+ {[%clk 0:01:28.2]} 58.
Qxe5+ {[%clk 0:00:19.5]} 58... Kxe5 {[%clk 0:01:27.7]} 0-1

[Event "*** SCC Grand Prix: Titled Tuesday Blitz"]
[Site "Chess.com"]
[Date "2020.08.11"]
[Round "1"]
[White "MFBerna"]
[Black "StephenDedalus83"]
[Result "0-1"]
[WhiteElo "2402"]
[BlackElo "2818"]
[TimeControl "180+1"]
[EndTime "10:06:54 PDT"]
[Termination "StephenDedalus83 won on time"]

1. d4 {[%clk 0:03:00.9]} 1... Nf6 {[%clk 0:02:55.3]} 2. Nf3 {[%clk 0:03:00.8]}
2... g6 {[%clk 0:02:55.7]} 3. Bf4 {[%clk 0:03:01.1]} 3... Bg7 {[%clk 0:02:55.2]}
4. e3 {[%clk 0:03:01.6]} 4... d6 {[%clk 0:02:55.1]} 5. Be2 {[%clk 0:03:01.9]}
5... Nh5 {[%clk 0:02:54.5]} 6. Bg3 {[%clk 0:03:01.3]} 6... Nxg3 {[%clk 0:02:49]}
7. hxg3 {[%clk 0:03:02.2]} 7... c5 {[%clk 0:02:48.5]} 8. c4 {[%clk 0:02:59.2]}
8... Qb6 {[%clk 0:02:29.3]} 9. Qb3 {[%clk 0:02:50.1]} 9... Nc6 {[%clk 0:02:22]}
10. Nc3 {[%clk 0:02:35.9]} 10... cxd4 {[%clk 0:02:03]} 11. Qxb6 {[%clk
0:02:20.7]} 11... axb6 {[%clk 0:02:02.3]} 12. Nb5 {[%clk 0:02:08.2]} 12... O-O
{[%clk 0:01:56.7]} 13. Nfxd4 {[%clk 0:01:52.8]} 13... Bd7 {[%clk 0:01:50.1]} 14.
O-O {[%clk 0:01:40.3]} 14... Rfc8 {[%clk 0:01:48.8]} 15. a3 {[%clk 0:01:38.2]}
15... Na5 {[%clk 0:01:44.3]} 16. Rac1 {[%clk 0:01:30.7]} 16... Bxb5 {[%clk
0:01:36.7]} 17. cxb5 {[%clk 0:01:24.5]} 17... Bxd4 {[%clk 0:01:36]} 18. exd4
{[%clk 0:01:22.4]} 18... Nb3 {[%clk 0:01:35.8]} 19. Rxc8+ {[%clk 0:01:03]} 19...
Rxc8 {[%clk 0:01:36.7]} 20. Rd1 {[%clk 0:00:52]} 20... Rc2 {[%clk 0:01:35]} 21.
Bf3 {[%clk 0:00:51.1]} 21... Rxb2 {[%clk 0:01:30.5]} 22. Bxb7 {[%clk 0:00:48.3]}
22... Na5 {[%clk 0:01:26.7]} 23. Ba6 {[%clk 0:00:33.4]} 23... Nc4 {[%clk
0:01:13.6]} 24. a4 {[%clk 0:00:15.5]} 24... Ra2 {[%clk 0:01:12.7]} 25. Re1
{[%clk 0:00:11.3]} 25... Kf8 {[%clk 0:01:09.8]} 26. d5 {[%clk 0:00:11.5]} 26...
Rxa4 {[%clk 0:01:08.1]} 27. Rc1 {[%clk 0:00:12]} 27... e6 {[%clk 0:01:00.9]} 28.
dxe6 {[%clk 0:00:09.6]} 28... fxe6 {[%clk 0:01:00.3]} 29. Kf1 {[%clk 0:00:10.5]}
29... Ke7 {[%clk 0:00:59.6]} 30. Ke2 {[%clk 0:00:11]} 30... Ra2+ {[%clk
0:00:58.3]} 31. Kf3 {[%clk 0:00:09]} 31... Ne5+ {[%clk 0:00:56.3]} 32. Ke3
{[%clk 0:00:08.4]} 32... Ra3+ {[%clk 0:00:55.7]} 33. Ke4 {[%clk 0:00:07.8]}
33... Kf6 {[%clk 0:00:54.5]} 34. Rc7 {[%clk 0:00:07.1]} 34... d5+ {[%clk
0:00:52.7]} 35. Kd4 {[%clk 0:00:07.1]} 35... Ra4+ {[%clk 0:00:52.6]} 36. Ke3
{[%clk 0:00:06.1]} 36... Ng4+ {[%clk 0:00:47.5]} 37. Kf3 {[%clk 0:00:04]} 37...
h5 {[%clk 0:00:46.8]} 38. Rc6 {[%clk 0:00:03.4]} 38... Ra2 {[%clk 0:00:45.4]}
0-1

[Event "*** SCC Grand Prix: Titled Tuesday Blitz"]
[Site "Chess.com"]
[Date "2020.08.11"]
[Round "1"]
[White "kleinebeer98"]
[Black "DishonorOnYourCow"]
[Result "1-0"]
[WhiteElo "2667"]
[BlackElo "2319"]
[TimeControl "180+1"]
[EndTime "10:06:54 PDT"]
[Termination "kleinebeer98 won on time"]

1. e4 {[%clk 0:02:59.3]} 1... c5 {[%clk 0:02:56.6]} 2. Nf3 {[%clk 0:02:56.9]}
2... d6 {[%clk 0:02:56.3]} 3. d4 {[%clk 0:02:57.3]} 3... cxd4 {[%clk 0:02:57.2]}
4. Nxd4 {[%clk 0:02:57.8]} 4... Nf6 {[%clk 0:02:57.6]} 5. Nc3 {[%clk 0:02:58.2]}
5... a6 {[%clk 0:02:58]} 6. Rg1 {[%clk 0:02:58.5]} 6... h5 {[%clk 0:02:56.7]} 7.
h3 {[%clk 0:02:57.5]} 7... Nc6 {[%clk 0:02:53]} 8. g4 {[%clk 0:02:55.4]} 8...
hxg4 {[%clk 0:02:50.7]} 9. hxg4 {[%clk 0:02:56.3]} 9... Nxd4 {[%clk 0:02:34.4]}
10. Qxd4 {[%clk 0:02:57.2]} 10... Nxg4 {[%clk 0:02:32.5]} 11. Nd5 {[%clk
0:02:56.9]} 11... Nf6 {[%clk 0:02:28.9]} 12. Nb6 {[%clk 0:02:49.8]} 12... Rb8
{[%clk 0:02:28.1]} 13. Be3 {[%clk 0:02:29.4]} 13... Be6 {[%clk 0:02:12.4]} 14.
O-O-O {[%clk 0:02:18.4]} 14... Qc7 {[%clk 0:02:05.8]} 15. Kb1 {[%clk 0:02:06.3]}
15... g6 {[%clk 0:02:01.8]} 16. f4 {[%clk 0:01:32.5]} 16... Bg7 {[%clk
0:01:56.6]} 17. f5 {[%clk 0:01:23.9]} 17... Nh5 {[%clk 0:01:51.2]} 18. Qd3
{[%clk 0:00:52.1]} 18... gxf5 {[%clk 0:01:09.9]} 19. exf5 {[%clk 0:00:53]} 19...
Bd7 {[%clk 0:01:09.8]} 20. Be2 {[%clk 0:00:43]} 20... Kf8 {[%clk 0:00:23.6]} 21.
Nd5 {[%clk 0:00:32.1]} 21... Qa5 {[%clk 0:00:17.1]} 22. Bxh5 {[%clk 0:00:24.7]}
22... Rxh5 {[%clk 0:00:16.6]} 23. f6 {[%clk 0:00:18.7]} 23... exf6 {[%clk
0:00:12.1]} 24. Nxf6 {[%clk 0:00:18.5]} 24... Bxf6 {[%clk 0:00:03.9]} 25. Qxd6+
{[%clk 0:00:18.4]} 25... Be7 {[%clk 0:00:03.9]} 26. Bh6+ {[%clk 0:00:18.8]}
26... Ke8 {[%clk 0:00:03.7]} 27. Rg8+ {[%clk 0:00:18.5]} 1-0